Workbook

Sheet KULLANMA KILAVUZU

Sheet MERA VERİ GİRİŞİ
B2: ÇOK İYİ | C2: İYİ | D2: ORTA | E2: ZAYIF | J2: MERA NO | K2: MERA DURUM SINIFI | L2: YAĞIŞ KUŞAĞI | M2: TABLOYA ESAS MERA YEŞİL OT VERİMİ (KG/DA) | N2: KULLANICI TARAFINDAN BELİRLENEN MERA YEŞİL OT VERİMİ (KG/DA) | O2: MERA ALANI (DA) | P2: MERA TOPLAM YAŞ OT ÜRETİMİ (TON) | Q2: FAYDALANMA ORANI | R2: RAPOR HAZIRLAMA TARİHİ | S2: f(metanın üniform otlatılmasını engelleyen faktörler) | T2: RAPORU HAZIRLAYANLAR | U2: MERA ORTALAMA YAŞ OT VERİMİ (KG/DA) | V2: OTLATMA DERECESİ | W2: PUAN | X2: KURU OT ÜRETİM FARKI (TON) | Z2: ÜRÜN ADI | AA2: EKİLEN ALAN (DA) | AB2: VERİM (KG/DA) | AC2: KURU MADDE ORANI (%) | AE2: TOPLAM HAVADA KURU KABAYEM (TON)
A3: 650-800 | B3: 1800 | C3: 1352 | D3: 900 | E3: 452 | F3: SATIR | G3: =MATCH(L3,A3:A6,0) -> 2 | H3: SÜTUN | I3: =MATCH(K3,B2:E2,0) -> 1 | J3: 1 | K3: ÇOK İYİ | L3: 500-650 | M3: =INDEX($B$3:$E$6,G3,I3) -> 1440 | N3: 1440 | O3: 3000 | P3: =O3*N3/1000 -> 4320 | Q3: 0.5 | R3: 2016-08-10 | S3: 1 | T3: Mustafa UZUN | U3: =(N3*O3+N4*O4+N5*O5+N6*O6)/(O3+O4+O5+O6) -> 890.5263158 | V3: çok hafif otlatma | W3: 0.6 | X3: =U19-U16 -> 0 | Z3: Yonca | AA3: 300 | AB3: 1100 | AC3: 0.85 | AE3: =AA3*AB3*AC3/0.85 -> 330000
A4: 500-650 | B4: 1440 | C4: 1080 | D4: 720 | E4: 360 | F4: SATIR | G4: =MATCH(L4,A3:A6,0) -> 2 | H4: SÜTUN | I4: =MATCH(K4,B2:E2,0) -> 2 | J4: 2 | K4: İYİ | L4: 500-650 | M4: =INDEX($B$3:$E$6,G4,I4) -> 1080 | N4: 1080 | O4: 6000 | P4: =O4*N4/1000 -> 6480 | Q4: =IF(U20<W3,V3,IF(AND(U20=W3),V3,IF(AND(U20=W4),V4,IF(AND(U20<W4,U20>W3),V4,IF(AND(U20<W6,U20>W4),V5,IF(AND(U20=W6),V5,IF(AND(U20<W7,U20>W6),V6,IF(AND(U20=W7),V7,IF(AND(U20>W7),V7,0))))))))) -> normal otlatma | S4: 1 | V4: hafif otlatma | W4: 0.9 | Z4: Korunga | AA4: 450 | AB4: 400 | AC4: 0.85 | AE4: =AA4*AB4*AC4/0.85 -> 180000
A5: 350-500 | B5: 1080 | C5: 812 | D5: 540 | E5: 272 | F5: SATIR | G5: =MATCH(L5,A3:A6,0) -> 2 | H5: SÜTUN | I5: =MATCH(K5,B2:E2,0) -> 3 | J5: 3 | K5: ORTA | L5: 500-650 | M5: =INDEX($B$3:$E$6,G5,I5) -> 720 | N5: 720 | O5: 7000 | P5: 5040 | S5: 1 | V5: normal otlatma | W5: 1 | Z5: Fiğ | AA5: 150 | AB5: 600 | AC5: 0.85 | AE5: 90000
A6: 200-350 | B6: 720 | C6: 540 | D6: 360 | E6: 180 | F6: SATIR | G6: =MATCH(L6,A3:A6,0) -> 2 | H6: SÜTUN | I6: =MATCH(K6,B2:E2,0) -> 4 | J6: 4 | K6: ZAYIF | L6: 500-650 | M6: =INDEX($B$3:$E$6,G6,I6) -> 360 | N6: 360 | O6: 3000 | P6: 1080 | S6: 1 | V6: ağır otlatma | W6: 1.05 | Z6: Mısır slajı | AA6: 178.4816786 | AB6: 5000 | AC6: 0.35 | AE6: 367462.2794
A7: TOPLAM | J7: TOPLAM | O7: =SUM(O3:O6) -> 19000 | P7: =SUM(P3:P6) -> 16920 | V7: aşırı otlatma | W7: 1.4 | Z7: Çayır otu | AA7: 400 | AB7: 400 | AC7: 0.85 | AE7: 160000
Z8: Buğday samanı | AA8: 400 | AB8: 100 | AC8: 0.9 | AE8: 42352.94118
J9: HAYVAN TÜRÜ/IRKI | K9: YAŞ(AY) | L9: OTLAYAN HAYVAN SAYISI (BAŞ) | M9: MERADA OTLATMA GÜN SAYISI (GÜN) | N9: İLKBAHAR VE ANIZ OTLATMASI SÜRESİ (GÜN) | P9: İLİ | Q9: İLÇESİ | R9: MAHALLESİ/KÖYÜ | S9: MERA MEVKİİ | T9: MERANIN MEVCUT DURUMU | Z9: Arpa samanı | AA9: 100 | AB9: 120 | AC9: 0.88 | AE9: 12423.52941
J10: SIĞIR (KÜLTÜR) | K10: İNEK | L10: 50 | M10: 120 | N10: 60 | P10: ERZURUM | Q10: OLTU | R10: DAMARLITAŞ | T10: İLİ | U10: =P10 -> ERZURUM | AE10: 0
J11: SIĞIR (KÜLTÜR) | K11: DANA-DÜVE | L11: 20 | M11: 120 | N11: 60 | T11: İLÇESİ | U11: =Q10 -> OLTU | AE11: 0
J12: SIĞIR (KÜLTÜR) | K12: BOĞA | L12: 4 | M12: 120 | N12: 60 | T12: MAHALLESİ/KÖYÜ | U12: =R10 -> DAMARLITAŞ | AE12: 0
J13: SIĞIR (MELEZ) | K13: İNEK | L13: 470 | M13: 150 | N13: 50 | T13: MERA MEVKİİ | U13: =S10 -> 0 | AE13: 0
J14: SIĞIR (MELEZ) | K14: DANA-DÜVE | L14: 423.0444444 | M14: 150 | N14: 50 | T14: MERA ALANI (DA) | U14: =SUM(O3:O6) -> 19000 | AE14: 0
J15: SIĞIR (YERLİ) | K15: İNEK | L15: 470 | M15: 160 | N15: 40 | T15: =P2 -> MERA TOPLAM YAŞ OT ÜRETİMİ (TON) | U15: =(P3*S3+P4*S4+P5*S5+P6*S6)*Q3 -> 8460 | AE15: 0
J16: SIĞIR (YERLİ) | K16: DANA-DÜVE | L16: 426 | M16: 160 | N16: 40 | T16: MERA TOPLAM KURU OT ÜRETİMİ (TON) | U16: =U15/4 -> 2115 | AE16: 0
J17: SIĞIR (YERLİ) | K17: ÖKÜZ | L17: 4 | M17: 160 | N17: 40 | T17: =U2 -> MERA ORTALAMA YAŞ OT VERİMİ (KG/DA) | U17: =U3 -> 890.5263158 | AE17: 0
J18: MANDA | K18: Dişi MANDA | L18: 15 | M18: 150 | N18: 40 | T18: MERA DÖNEMİNDE YAŞ OT İHTİYACI (TON) | U18: ='MERA YEM TÜKETİM'!F3 -> 8460 | AE18: 0
J19: MANDA | K19: ErkekMANDA | L19: 3 | M19: 150 | N19: 40 | T19: MERA DÖNEMİNDE KURU OT İHTİYACI (TON) | U19: =U18/4 -> 2115 | AE19: 0
J20: KOYUN | K20: KOYUN | L20: 700 | M20: 160 | N20: 40 | T20: OTLATMA ORANI | U20: =U18/U15 -> 1 | AE20: 0
J21: KOYUN | K21: Erkek KUZU | L21: 350 | M21: 160 | N21: 40 | T21: TOPLAM HAYVAN SAYISI (HB) | U21: =SUM(Tablo2[TOPLAM BBHB]) -> 1109.52 | AE21: 0
J22: KOYUN | K22: Dişi KUZU | L22: 350 | M22: 160 | N22: 40 | T22: MERA OTLATMA KAPASİTESİ (HB) | U22: =1000*(U16)/(((12.5)*AVERAGE(Tablo1[MERADA OTLATMA GÜN SAYISI (GÜN)]))) -> 1128 | AE22: 0
J23: KEÇİ | K23: KEÇİ | L23: 150 | M23: 160 | N23: 40 | T23: ÜRETİMİN İHTİYACI KARŞILAMA ORANI (%) | U23: =U16/U19 -> 1 | AE23: 0
J24: KEÇİ | K24: Erkek OĞLAK | L24: 75 | M24: 160 | N24: 40 | S24: =IF(U24<W24,X27,IF(AND(U24>X24),X26,IF(AND(U24=W24),X27,IF(AND(U24=X24),X26,IF(AND(U24<X24,U24>W24),X25,0))))) -> TAMAM | T24: MERA DÖNEMİNDE KURU KABA YEM AÇIĞI (TON) | U24: =X3 -> 0 | W24: -0.5 | X24: 0.5 | AE24: 0
J25: KEÇİ | K25: DişiOĞLAK | L25: 75 | M25: 160 | N25: 40 | T25: İLKBAHAR VE ANIZ OTLATMA KURU OT ÜRETİMİ (TON) | U25: =SUM(Tablo2[MERA DIŞI TOPLAM YAŞ OT TÜKETİMİ (KG)])/4/1000 -> 639.61875 | X25: TAMAM | AE25: 0
J26: AT | K26: AT | L26: 3 | M26: 150 | N26: 40 | T26: AHIR DÖNEMİNDE TÜKETİLEN KURUOT (TON) | U26: =(SUM(Tablo2[AHIRDA TOPLAM KURU OT TÜKETİMİ (KG)]))/1000 -> 2307.56625 | X26: EKSİK | AE26: 0
J27: KATIR | K27: KATIR | L27: 2 | M27: 150 | N27: 40 | T27: TOPLAM KURU OT İHTİYACI (TON) | U27: =SUM(U19,U25,U26) -> 5062.185 | X27: FAZLA | AE27: 0
J28: EŞEK | K28: EŞEK | L28: 4 | M28: 150 | N28: 40 | T28: HASAT EDİLEN HAVADA KURU KABAYEM (TON) | U28: =SUM(AE3:AE28)/1000 -> 1182.23875 | AE28: 0
S29: =IF(U29<W24,X27,IF(AND(U29>X24),X26,IF(AND(U29=W24),X27,IF(AND(U29=X24),X26,IF(AND(U29<X24,U29>W24),X25,0))))) -> EKSİK | T29: AHIRDA KURU KABAYEM AÇIĞI (TON) | U29: =U26-U28 -> 1125.3275 | W29: -0.5 | X29: 0.5
S30: =IF(U30<W24,X27,IF(AND(U30>X24),X26,IF(AND(U30=W24),X27,IF(AND(U30=X24),X26,IF(AND(U30<X24,U30>W24),X25,0))))) -> EKSİK | T30: TOPLAM KURU KABAYEM AÇIĞI (TON) | U30: =U29+U24 -> 1125.3275 | W30: -0.5 | X30: 0.5
T31: KANAAT | U31: =Q4 -> normal otlatma
T32: RAPORU HAZIRLAMA TARİHİ | U32: =R3 -> 2016-08-10
T33: RAPORU HAZIRLAYAN | U33: =T3 -> Mustafa UZUN

Sheet MERA YEM TÜKETİM (hidden)
A2: HAYVAN TÜRÜ/IRKI | B2: HAYVAN CİNSİ | C2: MERA YÖNETMELİĞİNE GÖRE CANLI AĞIRLIK (KG) | D2: MERA YÖNETMELİĞİNE GÖRE YAŞ OT TÜKETİMİ (KG/BAŞ/GÜN) | E2: MERA YÖNETMELİĞİNE TOPLAM GÖRE YAŞ OT TÜKETİMİ2(TON) | F2: MERA YÖNETMELİĞİNE GENEL TOPLAM GÖRE YAŞ OT TÜKETİMİ3(TON) | G2: BBHB CİNSİNDEN BİRİM HAYVAN DEĞERLERİ | H2: TOPLAM BBHB | I2: MERA DIŞI TOPLAM YAŞ OT TÜKETİMİ (KG) | J2: AHIR BAKIM SÜRESİ | K2: AHIRDA TOPLAM KURU OT TÜKETİMİ (KG)
A3: SIĞIR (KÜLTÜR) | B3: 36 ay<Dişi(İNEK) | C3: 500 | D3: =Tablo2[[#This Row],[MERA YÖNETMELİĞİNE GÖRE CANLI AĞIRLIK (KG)]]*0.1 -> 50 | E3: =Tablo2[[#This Row],[MERA YÖNETMELİĞİNE GÖRE YAŞ OT TÜKETİMİ (KG/BAŞ/GÜN)]]*'MERA VERİ GİRİŞİ'!L10*'MERA VERİ GİRİŞİ'!M10/1000 -> 300 | F3: =SUM(Tablo2[MERA YÖNETMELİĞİNE TOPLAM GÖRE YAŞ OT TÜKETİMİ2(TON)]) -> 8460 | G3: =(POWER(Tablo2[[#This Row],[MERA YÖNETMELİĞİNE GÖRE CANLI AĞIRLIK (KG)]],3/4))/POWER(500,3/4) -> 1 | H3: =Tablo2[[#This Row],[BBHB CİNSİNDEN BİRİM HAYVAN DEĞERLERİ]]*'MERA VERİ GİRİŞİ'!L10 -> 50 | I3: =Tablo2[[#This Row],[MERA YÖNETMELİĞİNE GÖRE YAŞ OT TÜKETİMİ (KG/BAŞ/GÜN)]]*'MERA VERİ GİRİŞİ'!N10*'MERA VERİ GİRİŞİ'!L10 -> 150000 | J3: =365-'MERA VERİ GİRİŞİ'!M10-'MERA VERİ GİRİŞİ'!N10 -> 185 | K3: =(Tablo2[[#This Row],[MERA YÖNETMELİĞİNE GÖRE YAŞ OT TÜKETİMİ (KG/BAŞ/GÜN)]]/4)*(Tablo2[[#This Row],[AHIR BAKIM SÜRESİ]])*'MERA VERİ GİRİŞİ'!L10 -> 115625
A4: SIĞIR (KÜLTÜR) | B4: 12-24 ay Dişi(DANA-DÜVE | C4: =C3*0.6 -> 300 | D4: =Tablo2[[#This Row],[MERA YÖNETMELİĞİNE GÖRE CANLI AĞIRLIK (KG)]]*0.1 -> 30 | E4: =Tablo2[[#This Row],[MERA YÖNETMELİĞİNE GÖRE YAŞ OT TÜKETİMİ (KG/BAŞ/GÜN)]]*'MERA VERİ GİRİŞİ'!L11*'MERA VERİ GİRİŞİ'!M11/1000 -> 72 | G4: 0.6 | H4: =Tablo2[[#This Row],[BBHB CİNSİNDEN BİRİM HAYVAN DEĞERLERİ]]*'MERA VERİ GİRİŞİ'!L11 -> 12 | I4: =Tablo2[[#This Row],[MERA YÖNETMELİĞİNE GÖRE YAŞ OT TÜKETİMİ (KG/BAŞ/GÜN)]]*'MERA VERİ GİRİŞİ'!N11*'MERA VERİ GİRİŞİ'!L11 -> 36000 | J4: =365-'MERA VERİ GİRİŞİ'!M11-'MERA VERİ GİRİŞİ'!N11 -> 185 | K4: =(Tablo2[[#This Row],[MERA YÖNETMELİĞİNE GÖRE YAŞ OT TÜKETİMİ (KG/BAŞ/GÜN)]]/4)*(Tablo2[[#This Row],[AHIR BAKIM SÜRESİ]])*'MERA VERİ GİRİŞİ'!L11 -> 27750
A5: SIĞIR (KÜLTÜR) | B5: 36 ay<Erkek(BOĞA) | C5: =C3*1.5 -> 750 | D5: =Tablo2[[#This Row],[MERA YÖNETMELİĞİNE GÖRE CANLI AĞIRLIK (KG)]]*0.1 -> 75 | E5: =Tablo2[[#This Row],[MERA YÖNETMELİĞİNE GÖRE YAŞ OT TÜKETİMİ (KG/BAŞ/GÜN)]]*'MERA VERİ GİRİŞİ'!L12*'MERA VERİ GİRİŞİ'!M12/1000 -> 36 | G5: 1.5 | H5: =Tablo2[[#This Row],[BBHB CİNSİNDEN BİRİM HAYVAN DEĞERLERİ]]*'MERA VERİ GİRİŞİ'!L12 -> 6 | I5: =Tablo2[[#This Row],[MERA YÖNETMELİĞİNE GÖRE YAŞ OT TÜKETİMİ (KG/BAŞ/GÜN)]]*'MERA VERİ GİRİŞİ'!N12*'MERA VERİ GİRİŞİ'!L12 -> 18000 | J5: =365-'MERA VERİ GİRİŞİ'!M12-'MERA VERİ GİRİŞİ'!N12 -> 185 | K5: =(Tablo2[[#This Row],[MERA YÖNETMELİĞİNE GÖRE YAŞ OT TÜKETİMİ (KG/BAŞ/GÜN)]]/4)*(Tablo2[[#This Row],[AHIR BAKIM SÜRESİ]])*'MERA VERİ GİRİŞİ'!L12 -> 13875
A6: SIĞIR (MELEZ) | B6: 36 ay<Dişi(İNEK) | C6: =C3*0.75 -> 375 | D6: =Tablo2[[#This Row],[MERA YÖNETMELİĞİNE GÖRE CANLI AĞIRLIK (KG)]]*0.1 -> 37.5 | E6: =Tablo2[[#This Row],[MERA YÖNETMELİĞİNE GÖRE YAŞ OT TÜKETİMİ (KG/BAŞ/GÜN)]]*'MERA VERİ GİRİŞİ'!L13*'MERA VERİ GİRİŞİ'!M13/1000 -> 2643.75 | G6: 0.75 | H6: =Tablo2[[#This Row],[BBHB CİNSİNDEN BİRİM HAYVAN DEĞERLERİ]]*'MERA VERİ GİRİŞİ'!L13 -> 352.5 | I6: =Tablo2[[#This Row],[MERA YÖNETMELİĞİNE GÖRE YAŞ OT TÜKETİMİ (KG/BAŞ/GÜN)]]*'MERA VERİ GİRİŞİ'!N13*'MERA VERİ GİRİŞİ'!L13 -> 881250 | J6: =365-'MERA VERİ GİRİŞİ'!M13-'MERA VERİ GİRİŞİ'!N13 -> 165 | K6: =(Tablo2[[#This Row],[MERA YÖNETMELİĞİNE GÖRE YAŞ OT TÜKETİMİ (KG/BAŞ/GÜN)]]/4)*(Tablo2[[#This Row],[AHIR BAKIM SÜRESİ]])*'MERA VERİ GİRİŞİ'!L13 -> 727031.25
A7: SIĞIR (MELEZ) | B7: 12-24 ay Dişi(DANA-DÜVE | C7: =C3*0.45 -> 225 | D7: =Tablo2[[#This Row],[MERA YÖNETMELİĞİNE GÖRE CANLI AĞIRLIK (KG)]]*0.1 -> 22.5 | E7: =Tablo2[[#This Row],[MERA YÖNETMELİĞİNE GÖRE YAŞ OT TÜKETİMİ (KG/BAŞ/GÜN)]]*'MERA VERİ GİRİŞİ'!L14*'MERA VERİ GİRİŞİ'!M14/1000 -> 1427.775 | G7: 0.45 | H7: =Tablo2[[#This Row],[BBHB CİNSİNDEN BİRİM HAYVAN DEĞERLERİ]]*'MERA VERİ GİRİŞİ'!L14 -> 190.37 | I7: =Tablo2[[#This Row],[MERA YÖNETMELİĞİNE GÖRE YAŞ OT TÜKETİMİ (KG/BAŞ/GÜN)]]*'MERA VERİ GİRİŞİ'!N14*'MERA VERİ GİRİŞİ'!L14 -> 475925 | J7: =365-'MERA VERİ GİRİŞİ'!M14-'MERA VERİ GİRİŞİ'!N14 -> 165 | K7: =(Tablo2[[#This Row],[MERA YÖNETMELİĞİNE GÖRE YAŞ OT TÜKETİMİ (KG/BAŞ/GÜN)]]/4)*(Tablo2[[#This Row],[AHIR BAKIM SÜRESİ]])*'MERA VERİ GİRİŞİ'!L14 -> 392638.125
A8: SIĞIR (YERLİ) | B8: 36 ay<Dişi(İNEK) | C8: =C3*0.5 -> 250 | D8: =Tablo2[[#This Row],[MERA YÖNETMELİĞİNE GÖRE CANLI AĞIRLIK (KG)]]*0.1 -> 25 | E8: =Tablo2[[#This Row],[MERA YÖNETMELİĞİNE GÖRE YAŞ OT TÜKETİMİ (KG/BAŞ/GÜN)]]*'MERA VERİ GİRİŞİ'!L15*'MERA VERİ GİRİŞİ'!M15/1000 -> 1880 | G8: 0.5 | H8: =Tablo2[[#This Row],[BBHB CİNSİNDEN BİRİM HAYVAN DEĞERLERİ]]*'MERA VERİ GİRİŞİ'!L15 -> 235 | I8: =Tablo2[[#This Row],[MERA YÖNETMELİĞİNE GÖRE YAŞ OT TÜKETİMİ (KG/BAŞ/GÜN)]]*'MERA VERİ GİRİŞİ'!N15*'MERA VERİ GİRİŞİ'!L15 -> 470000 | J8: =365-'MERA VERİ GİRİŞİ'!M15-'MERA VERİ GİRİŞİ'!N15 -> 165 | K8: =(Tablo2[[#This Row],[MERA YÖNETMELİĞİNE GÖRE YAŞ OT TÜKETİMİ (KG/BAŞ/GÜN)]]/4)*(Tablo2[[#This Row],[AHIR BAKIM SÜRESİ]])*'MERA VERİ GİRİŞİ'!L15 -> 484687.5
A9: SIĞIR (YERLİ) | B9: 12-24 ay Dişi(DANA-DÜVE | C9: =C3*0.3 -> 150 | D9: =Tablo2[[#This Row],[MERA YÖNETMELİĞİNE GÖRE CANLI AĞIRLIK (KG)]]*0.1 -> 15 | E9: =Tablo2[[#This Row],[MERA YÖNETMELİĞİNE GÖRE YAŞ OT TÜKETİMİ (KG/BAŞ/GÜN)]]*'MERA VERİ GİRİŞİ'!L16*'MERA VERİ GİRİŞİ'!M16/1000 -> 1022.4 | G9: 0.3 | H9: =Tablo2[[#This Row],[BBHB CİNSİNDEN BİRİM HAYVAN DEĞERLERİ]]*'MERA VERİ GİRİŞİ'!L16 -> 127.8 | I9: =Tablo2[[#This Row],[MERA YÖNETMELİĞİNE GÖRE YAŞ OT TÜKETİMİ (KG/BAŞ/GÜN)]]*'MERA VERİ GİRİŞİ'!N16*'MERA VERİ GİRİŞİ'!L16 -> 255600 | J9: =365-'MERA VERİ GİRİŞİ'!M16-'MERA VERİ GİRİŞİ'!N16 -> 165 | K9: =(Tablo2[[#This Row],[MERA YÖNETMELİĞİNE GÖRE YAŞ OT TÜKETİMİ (KG/BAŞ/GÜN)]]/4)*(Tablo2[[#This Row],[AHIR BAKIM SÜRESİ]])*'MERA VERİ GİRİŞİ'!L16 -> 263587.5
A10: SIĞIR (YERLİ) | B10: 36 ay<Erkek(ÖKÜZ) | C10: =C3*0.6 -> 300 | D10: =Tablo2[[#This Row],[MERA YÖNETMELİĞİNE GÖRE CANLI AĞIRLIK (KG)]]*0.1 -> 30 | E10: =Tablo2[[#This Row],[MERA YÖNETMELİĞİNE GÖRE YAŞ OT TÜKETİMİ (KG/BAŞ/GÜN)]]*'MERA VERİ GİRİŞİ'!L17*'MERA VERİ GİRİŞİ'!M17/1000 -> 19.2 | G10: 0.6 | H10: =Tablo2[[#This Row],[BBHB CİNSİNDEN BİRİM HAYVAN DEĞERLERİ]]*'MERA VERİ GİRİŞİ'!L17 -> 2.4 | I10: =Tablo2[[#This Row],[MERA YÖNETMELİĞİNE GÖRE YAŞ OT TÜKETİMİ (KG/BAŞ/GÜN)]]*'MERA VERİ GİRİŞİ'!N17*'MERA VERİ GİRİŞİ'!L17 -> 4800 | J10: =365-'MERA VERİ GİRİŞİ'!M17-'MERA VERİ GİRİŞİ'!N17 -> 165 | K10: =(Tablo2[[#This Row],[MERA YÖNETMELİĞİNE GÖRE YAŞ OT TÜKETİMİ (KG/BAŞ/GÜN)]]/4)*(Tablo2[[#This Row],[AHIR BAKIM SÜRESİ]])*'MERA VERİ GİRİŞİ'!L17 -> 4950
A11: MANDA | B11: 36 ay<Dişi | C11: =C3*0.75 -> 375 | D11: =Tablo2[[#This Row],[MERA YÖNETMELİĞİNE GÖRE CANLI AĞIRLIK (KG)]]*0.1 -> 37.5 | E11: =Tablo2[[#This Row],[MERA YÖNETMELİĞİNE GÖRE YAŞ OT TÜKETİMİ (KG/BAŞ/GÜN)]]*'MERA VERİ GİRİŞİ'!L18*'MERA VERİ GİRİŞİ'!M18/1000 -> 84.375 | G11: 0.75 | H11: =Tablo2[[#This Row],[BBHB CİNSİNDEN BİRİM HAYVAN DEĞERLERİ]]*'MERA VERİ GİRİŞİ'!L18 -> 11.25 | I11: =Tablo2[[#This Row],[MERA YÖNETMELİĞİNE GÖRE YAŞ OT TÜKETİMİ (KG/BAŞ/GÜN)]]*'MERA VERİ GİRİŞİ'!N18*'MERA VERİ GİRİŞİ'!L18 -> 22500 | J11: =365-'MERA VERİ GİRİŞİ'!M18-'MERA VERİ GİRİŞİ'!N18 -> 175 | K11: =(Tablo2[[#This Row],[MERA YÖNETMELİĞİNE GÖRE YAŞ OT TÜKETİMİ (KG/BAŞ/GÜN)]]/4)*(Tablo2[[#This Row],[AHIR BAKIM SÜRESİ]])*'MERA VERİ GİRİŞİ'!L18 -> 24609.375
A12: MANDA | B12: 36 ay<Erkek | C12: =C3*0.9 -> 450 | D12: =Tablo2[[#This Row],[MERA YÖNETMELİĞİNE GÖRE CANLI AĞIRLIK (KG)]]*0.1 -> 45 | E12: =Tablo2[[#This Row],[MERA YÖNETMELİĞİNE GÖRE YAŞ OT TÜKETİMİ (KG/BAŞ/GÜN)]]*'MERA VERİ GİRİŞİ'!L19*'MERA VERİ GİRİŞİ'!M19/1000 -> 20.25 | G12: 0.9 | H12: =Tablo2[[#This Row],[BBHB CİNSİNDEN BİRİM HAYVAN DEĞERLERİ]]*'MERA VERİ GİRİŞİ'!L19 -> 2.7 | I12: =Tablo2[[#This Row],[MERA YÖNETMELİĞİNE GÖRE YAŞ OT TÜKETİMİ (KG/BAŞ/GÜN)]]*'MERA VERİ GİRİŞİ'!N19*'MERA VERİ GİRİŞİ'!L19 -> 5400 | J12: =365-'MERA VERİ GİRİŞİ'!M19-'MERA VERİ GİRİŞİ'!N19 -> 175 | K12: =(Tablo2[[#This Row],[MERA YÖNETMELİĞİNE GÖRE YAŞ OT TÜKETİMİ (KG/BAŞ/GÜN)]]/4)*(Tablo2[[#This Row],[AHIR BAKIM SÜRESİ]])*'MERA VERİ GİRİŞİ'!L19 -> 5906.25
A13: KOYUN | B13: 36 ay<Dişi | C13: =C3*0.1 -> 50 | D13: =Tablo2[[#This Row],[MERA YÖNETMELİĞİNE GÖRE CANLI AĞIRLIK (KG)]]*0.1 -> 5 | E13: =Tablo2[[#This Row],[MERA YÖNETMELİĞİNE GÖRE YAŞ OT TÜKETİMİ (KG/BAŞ/GÜN)]]*'MERA VERİ GİRİŞİ'!L20*'MERA VERİ GİRİŞİ'!M20/1000 -> 560 | G13: 0.1 | H13: =Tablo2[[#This Row],[BBHB CİNSİNDEN BİRİM HAYVAN DEĞERLERİ]]*'MERA VERİ GİRİŞİ'!L20 -> 70 | I13: =Tablo2[[#This Row],[MERA YÖNETMELİĞİNE GÖRE YAŞ OT TÜKETİMİ (KG/BAŞ/GÜN)]]*'MERA VERİ GİRİŞİ'!N20*'MERA VERİ GİRİŞİ'!L20 -> 140000 | J13: =365-'MERA VERİ GİRİŞİ'!M20-'MERA VERİ GİRİŞİ'!N20 -> 165 | K13: =(Tablo2[[#This Row],[MERA YÖNETMELİĞİNE GÖRE YAŞ OT TÜKETİMİ (KG/BAŞ/GÜN)]]/4)*(Tablo2[[#This Row],[AHIR BAKIM SÜRESİ]])*'MERA VERİ GİRİŞİ'!L20 -> 144375
A14: KOYUN | B14: 0-6 ay Erkek(KUZU) | C14: =C3*0.04 -> 20 | D14: =Tablo2[[#This Row],[MERA YÖNETMELİĞİNE GÖRE CANLI AĞIRLIK (KG)]]*0.1 -> 2 | E14: =Tablo2[[#This Row],[MERA YÖNETMELİĞİNE GÖRE YAŞ OT TÜKETİMİ (KG/BAŞ/GÜN)]]*'MERA VERİ GİRİŞİ'!L21*'MERA VERİ GİRİŞİ'!M21/1000 -> 112 | G14: 0.04 | H14: =Tablo2[[#This Row],[BBHB CİNSİNDEN BİRİM HAYVAN DEĞERLERİ]]*'MERA VERİ GİRİŞİ'!L21 -> 14 | I14: =Tablo2[[#This Row],[MERA YÖNETMELİĞİNE GÖRE YAŞ OT TÜKETİMİ (KG/BAŞ/GÜN)]]*'MERA VERİ GİRİŞİ'!N21*'MERA VERİ GİRİŞİ'!L21 -> 28000 | J14: =365-'MERA VERİ GİRİŞİ'!M21-'MERA VERİ GİRİŞİ'!N21 -> 165 | K14: =(Tablo2[[#This Row],[MERA YÖNETMELİĞİNE GÖRE YAŞ OT TÜKETİMİ (KG/BAŞ/GÜN)]]/4)*(Tablo2[[#This Row],[AHIR BAKIM SÜRESİ]])*'MERA VERİ GİRİŞİ'!L21 -> 28875
A15: KOYUN | B15: 0-6 ay Dişi(KUZU) | C15: =C3*0.04 -> 20 | D15: =Tablo2[[#This Row],[MERA YÖNETMELİĞİNE GÖRE CANLI AĞIRLIK (KG)]]*0.1 -> 2 | E15: =Tablo2[[#This Row],[MERA YÖNETMELİĞİNE GÖRE YAŞ OT TÜKETİMİ (KG/BAŞ/GÜN)]]*'MERA VERİ GİRİŞİ'!L22*'MERA VERİ GİRİŞİ'!M22/1000 -> 112 | G15: 0.04 | H15: =Tablo2[[#This Row],[BBHB CİNSİNDEN BİRİM HAYVAN DEĞERLERİ]]*'MERA VERİ GİRİŞİ'!L22 -> 14 | I15: =Tablo2[[#This Row],[MERA YÖNETMELİĞİNE GÖRE YAŞ OT TÜKETİMİ (KG/BAŞ/GÜN)]]*'MERA VERİ GİRİŞİ'!N22*'MERA VERİ GİRİŞİ'!L22 -> 28000 | J15: =365-'MERA VERİ GİRİŞİ'!M22-'MERA VERİ GİRİŞİ'!N22 -> 165 | K15: =(Tablo2[[#This Row],[MERA YÖNETMELİĞİNE GÖRE YAŞ OT TÜKETİMİ (KG/BAŞ/GÜN)]]/4)*(Tablo2[[#This Row],[AHIR BAKIM SÜRESİ]])*'MERA VERİ GİRİŞİ'!L22 -> 28875
A16: KEÇİ | B16: 36 ay<Dişi | C16: =C3*0.08 -> 40 | D16: =Tablo2[[#This Row],[MERA YÖNETMELİĞİNE GÖRE CANLI AĞIRLIK (KG)]]*0.1 -> 4 | E16: =Tablo2[[#This Row],[MERA YÖNETMELİĞİNE GÖRE YAŞ OT TÜKETİMİ (KG/BAŞ/GÜN)]]*'MERA VERİ GİRİŞİ'!L23*'MERA VERİ GİRİŞİ'!M23/1000 -> 96 | G16: 0.08 | H16: =Tablo2[[#This Row],[BBHB CİNSİNDEN BİRİM HAYVAN DEĞERLERİ]]*'MERA VERİ GİRİŞİ'!L23 -> 12 | I16: =Tablo2[[#This Row],[MERA YÖNETMELİĞİNE GÖRE YAŞ OT TÜKETİMİ (KG/BAŞ/GÜN)]]*'MERA VERİ GİRİŞİ'!N23*'MERA VERİ GİRİŞİ'!L23 -> 24000 | J16: =365-'MERA VERİ GİRİŞİ'!M23-'MERA VERİ GİRİŞİ'!N23 -> 165 | K16: =(Tablo2[[#This Row],[MERA YÖNETMELİĞİNE GÖRE YAŞ OT TÜKETİMİ (KG/BAŞ/GÜN)]]/4)*(Tablo2[[#This Row],[AHIR BAKIM SÜRESİ]])*'MERA VERİ GİRİŞİ'!L23 -> 24750
A17: KEÇİ | B17: 0-6 ay Erkek(OĞLAK) | C17: =C3*0.04 -> 20 | D17: =Tablo2[[#This Row],[MERA YÖNETMELİĞİNE GÖRE CANLI AĞIRLIK (KG)]]*0.1 -> 2 | E17: =Tablo2[[#This Row],[MERA YÖNETMELİĞİNE GÖRE YAŞ OT TÜKETİMİ (KG/BAŞ/GÜN)]]*'MERA VERİ GİRİŞİ'!L24*'MERA VERİ GİRİŞİ'!M24/1000 -> 24 | G17: 0.04 | H17: =Tablo2[[#This Row],[BBHB CİNSİNDEN BİRİM HAYVAN DEĞERLERİ]]*'MERA VERİ GİRİŞİ'!L24 -> 3 | I17: =Tablo2[[#This Row],[MERA YÖNETMELİĞİNE GÖRE YAŞ OT TÜKETİMİ (KG/BAŞ/GÜN)]]*'MERA VERİ GİRİŞİ'!N24*'MERA VERİ GİRİŞİ'!L24 -> 6000 | J17: =365-'MERA VERİ GİRİŞİ'!M24-'MERA VERİ GİRİŞİ'!N24 -> 165 | K17: =(Tablo2[[#This Row],[MERA YÖNETMELİĞİNE GÖRE YAŞ OT TÜKETİMİ (KG/BAŞ/GÜN)]]/4)*(Tablo2[[#This Row],[AHIR BAKIM SÜRESİ]])*'MERA VERİ GİRİŞİ'!L24 -> 6187.5
A18: KEÇİ | B18: 0-6 ay Dişi(OĞLAK) | C18: =C3*0.04 -> 20 | D18: =Tablo2[[#This Row],[MERA YÖNETMELİĞİNE GÖRE CANLI AĞIRLIK (KG)]]*0.1 -> 2 | E18: =Tablo2[[#This Row],[MERA YÖNETMELİĞİNE GÖRE YAŞ OT TÜKETİMİ (KG/BAŞ/GÜN)]]*'MERA VERİ GİRİŞİ'!L25*'MERA VERİ GİRİŞİ'!M25/1000 -> 24 | G18: 0.04 | H18: =Tablo2[[#This Row],[BBHB CİNSİNDEN BİRİM HAYVAN DEĞERLERİ]]*'MERA VERİ GİRİŞİ'!L25 -> 3 | I18: =Tablo2[[#This Row],[MERA YÖNETMELİĞİNE GÖRE YAŞ OT TÜKETİMİ (KG/BAŞ/GÜN)]]*'MERA VERİ GİRİŞİ'!N25*'MERA VERİ GİRİŞİ'!L25 -> 6000 | J18: =365-'MERA VERİ GİRİŞİ'!M25-'MERA VERİ GİRİŞİ'!N25 -> 165 | K18: =(Tablo2[[#This Row],[MERA YÖNETMELİĞİNE GÖRE YAŞ OT TÜKETİMİ (KG/BAŞ/GÜN)]]/4)*(Tablo2[[#This Row],[AHIR BAKIM SÜRESİ]])*'MERA VERİ GİRİŞİ'!L25 -> 6187.5
A19: AT | B19: AT | C19: =C3*0.5 -> 250 | D19: =Tablo2[[#This Row],[MERA YÖNETMELİĞİNE GÖRE CANLI AĞIRLIK (KG)]]*0.1 -> 25 | E19: =Tablo2[[#This Row],[MERA YÖNETMELİĞİNE GÖRE YAŞ OT TÜKETİMİ (KG/BAŞ/GÜN)]]*'MERA VERİ GİRİŞİ'!L26*'MERA VERİ GİRİŞİ'!M26/1000 -> 11.25 | G19: 0.5 | H19: =Tablo2[[#This Row],[BBHB CİNSİNDEN BİRİM HAYVAN DEĞERLERİ]]*'MERA VERİ GİRİŞİ'!L26 -> 1.5 | I19: =Tablo2[[#This Row],[MERA YÖNETMELİĞİNE GÖRE YAŞ OT TÜKETİMİ (KG/BAŞ/GÜN)]]*'MERA VERİ GİRİŞİ'!N26*'MERA VERİ GİRİŞİ'!L26 -> 3000 | J19: =365-'MERA VERİ GİRİŞİ'!M26-'MERA VERİ GİRİŞİ'!N26 -> 175 | K19: =(Tablo2[[#This Row],[MERA YÖNETMELİĞİNE GÖRE YAŞ OT TÜKETİMİ (KG/BAŞ/GÜN)]]/4)*(Tablo2[[#This Row],[AHIR BAKIM SÜRESİ]])*'MERA VERİ GİRİŞİ'!L26 -> 3281.25
A20: KATIR | B20: KATIR | C20: =C3*0.4 -> 200 | D20: =Tablo2[[#This Row],[MERA YÖNETMELİĞİNE GÖRE CANLI AĞIRLIK (KG)]]*0.1 -> 20 | E20: =Tablo2[[#This Row],[MERA YÖNETMELİĞİNE GÖRE YAŞ OT TÜKETİMİ (KG/BAŞ/GÜN)]]*'MERA VERİ GİRİŞİ'!L27*'MERA VERİ GİRİŞİ'!M27/1000 -> 6 | G20: 0.4 | H20: =Tablo2[[#This Row],[BBHB CİNSİNDEN BİRİM HAYVAN DEĞERLERİ]]*'MERA VERİ GİRİŞİ'!L27 -> 0.8 | I20: =Tablo2[[#This Row],[MERA YÖNETMELİĞİNE GÖRE YAŞ OT TÜKETİMİ (KG/BAŞ/GÜN)]]*'MERA VERİ GİRİŞİ'!N27*'MERA VERİ GİRİŞİ'!L27 -> 1600 | J20: =365-'MERA VERİ GİRİŞİ'!M27-'MERA VERİ GİRİŞİ'!N27 -> 175 | K20: =(Tablo2[[#This Row],[MERA YÖNETMELİĞİNE GÖRE YAŞ OT TÜKETİMİ (KG/BAŞ/GÜN)]]/4)*(Tablo2[[#This Row],[AHIR BAKIM SÜRESİ]])*'MERA VERİ GİRİŞİ'!L27 -> 1750
A21: EŞEK | B21: EŞEK | C21: =C3*0.3 -> 150 | D21: =Tablo2[[#This Row],[MERA YÖNETMELİĞİNE GÖRE CANLI AĞIRLIK (KG)]]*0.1 -> 15 | E21: =Tablo2[[#This Row],[MERA YÖNETMELİĞİNE GÖRE YAŞ OT TÜKETİMİ (KG/BAŞ/GÜN)]]*'MERA VERİ GİRİŞİ'!L28*'MERA VERİ GİRİŞİ'!M28/1000 -> 9 | G21: 0.3 | H21: =Tablo2[[#This Row],[BBHB CİNSİNDEN BİRİM HAYVAN DEĞERLERİ]]*'MERA VERİ GİRİŞİ'!L28 -> 1.2 | I21: =Tablo2[[#This Row],[MERA YÖNETMELİĞİNE GÖRE YAŞ OT TÜKETİMİ (KG/BAŞ/GÜN)]]*'MERA VERİ GİRİŞİ'!N28*'MERA VERİ GİRİŞİ'!L28 -> 2400 | J21: =365-'MERA VERİ GİRİŞİ'!M28-'MERA VERİ GİRİŞİ'!N28 -> 175 | K21: =(Tablo2[[#This Row],[MERA YÖNETMELİĞİNE GÖRE YAŞ OT TÜKETİMİ (KG/BAŞ/GÜN)]]/4)*(Tablo2[[#This Row],[AHIR BAKIM SÜRESİ]])*'MERA VERİ GİRİŞİ'!L28 -> 2625
A22: KEÇİ
A23: KEÇİ
A24: KEÇİ
A25: KEÇİ

Sheet KAYIT
A1: Sıra No | B1: İLİ | C1: İLÇESİ | D1: MAHALLESİ/KÖYÜ | E1: MERA MEVKİİ | F1: MERA ALANI (DA) | G1: MERA TOPLAM YAŞ OT ÜRETİMİ (TON) | H1: MERA TOPLAM KURU OT ÜRETİMİ (TON) | I1: MERA ORTALAMA YAŞ OT VERİMİ (KG/DA) | J1: MERA DÖNEMİNDE YAŞ OT İHTİYACI (TON) | K1: MERA DÖNEMİNDE KURU OT İHTİYACI (TON) | L1: OTLATMA ORANI | M1: TOPLAM HAYVAN SAYISI (HB) | N1: MERA OTLATMA KAPASİTESİ (HB) | O1: ÜRETİMİN İHTİYACI KARŞILAMA ORANI (%) | P1: MERA DÖNEMİNDE KURU KABA YEM AÇIĞI (TON) | Q1: İLKBAHAR VE ANIZ OTLATMA KURU OT ÜRETİMİ (TON) | R1: AHIR DÖNEMİNDE TÜKETİLEN KURUOT (TON) | S1: TOPLAM KURU OT İHTİYACI (TON) | T1: HASAT EDİLEN HAVADA KURU KABAYEM (TON) | U1: AHIRDA KURU KABAYEM AÇIĞI (TON) | V1: TOPLAM KURU KABAYEM AÇIĞI (TON) | W1: KANAAT | X1: RAPORU HAZIRLAMA TARİHİ | Y1: RAPORU HAZIRLAYAN
A2: 0
A3: =A2+1 -> 1 | B3: ERZURUM | C3: OLTU | D3: DAMARLITAŞ | E3: 0 | F3: 19000 | G3: 8460 | H3: 2115 | I3: 890.5263158 | J3: 8460 | K3: 2115 | L3: 1 | M3: 1109.52 | N3: 1128 | O3: 1 | P3: 0 | Q3: 639.61875 | R3: 2307.56625 | S3: 5062.185 | T3: 1182.23875 | U3: 1125.3275 | V3: 1125.3275 | W3: normal otlatma | X3: 2016-08-10 | Y3: Mustafa UZUN
A4: =A3+1 -> 2 | B4: ERZURUM | C4: OLTU | D4: DAMARLITAŞ | E4: 0 | F4: 19000 | G4: 8460 | H4: 2115 | I4: 890.5263158 | J4: 4230 | K4: 1057.5 | L4: 0.5 | M4: 563.9066667 | N4: 1128 | O4: 2 | P4: -1057.5 | Q4: 333.0854167 | R4: 1182.23875 | S4: 2572.824167 | T4: 1182.23875 | U4: 0 | V4: -1057.5 | W4: çok hafif otlatma | X4: 2016-08-10 | Y4: Mustafa UZUN

Sheet ARŞİV
A1: Sıra No | B1: İLİ | C1: İLÇESİ | D1: MAHALLESİ/KÖYÜ | E1: MERA MEVKİİ | F1: MERA ALANI (DA) | G1: MERA TOPLAM YAŞ OT ÜRETİMİ (TON) | H1: MERA TOPLAM KURU OT ÜRETİMİ (TON) | I1: MERA ORTALAMA YAŞ OT VERİMİ (KG/DA) | J1: MERA DÖNEMİNDE YAŞ OT İHTİYACI (TON) | K1: MERA DÖNEMİNDE KURU OT İHTİYACI (TON) | L1: OTLATMA ORANI | M1: TOPLAM HAYVAN SAYISI (HB) | N1: MERA OTLATMA KAPASİTESİ (HB) | O1: ÜRETİMİN İHTİYACI KARŞILAMA ORANI (%) | P1: MERA DÖNEMİNDE KURU KABA YEM AÇIĞI (TON) | Q1: İLKBAHAR VE ANIZ OTLATMA KURU OT ÜRETİMİ (TON) | R1: AHIR DÖNEMİNDE TÜKETİLEN KURUOT (TON) | S1: TOPLAM KURU OT İHTİYACI (TON) | T1: HASAT EDİLEN HAVADA KURU KABAYEM (TON) | U1: AHIRDA KURU KABAYEM AÇIĞI (TON) | V1: TOPLAM KURU KABAYEM AÇIĞI (TON) | W1: KANAAT | X1: RAPORU HAZIRLAMA TARİHİ | Y1: RAPORU HAZIRLAYAN
A2: 1 | B2: ERZURUM | C2: OLTU | D2: DAMARLITAŞ | E2: 0 | F2: 19000 | G2: 8460 | H2: 2115 | I2: 890.5263158 | J2: 8460 | K2: 2115 | L2: 1 | M2: 1109.52 | N2: 1128 | O2: 1 | P2: 0 | Q2: 639.61875 | R2: 2307.56625 | S2: 5062.185 | T2: 1182.23875 | U2: 1125.3275 | V2: 1125.3275 | W2: normal otlatma | X2: 2016-08-10 | Y2: Mustafa UZUN
A3: =A2+1 -> 2 | B3: ERZURUM | C3: OLTU | D3: DAMARLITAŞ | E3: 0 | F3: 19000 | G3: 8460 | H3: 2115 | I3: 890.5263158 | J3: 4230 | K3: 1057.5 | L3: 0.5 | M3: 563.9066667 | N3: 1128 | O3: 2 | P3: -1057.5 | Q3: 333.0854167 | R3: 1182.23875 | S3: 2572.824167 | T3: 1182.23875 | U3: 0 | V3: -1057.5 | W3: çok hafif otlatma | X3: 2016-08-10 | Y3: Mustafa UZUN
A4: =A3+1 -> 3

Sheet ARŞİV ÇIKTI
A1: Sıra No | B1: 1 | C1: 2 | D1: 3
A2: İLİ | B2: ERZURUM | C2: ERZURUM
A3: İLÇESİ | B3: OLTU | C3: OLTU
A4: MAHALLESİ/KÖYÜ | B4: DAMARLITAŞ | C4: DAMARLITAŞ
A5: MERA MEVKİİ | B5: 0 | C5: 0
A6: MERA ALANI (DA) | B6: 19000 | C6: 19000
A7: MERA TOPLAM YAŞ OT ÜRETİMİ (TON) | B7: 8460 | C7: 8460
A8: MERA TOPLAM KURU OT ÜRETİMİ (TON) | B8: 2115 | C8: 2115
A9: MERA ORTALAMA YAŞ OT VERİMİ (KG/DA) | B9: 890.5263158 | C9: 890.5263158
A10: MERA DÖNEMİNDE YAŞ OT İHTİYACI (TON) | B10: 8460 | C10: 4230
A11: MERA DÖNEMİNDE KURU OT İHTİYACI (TON) | B11: 2115 | C11: 1057.5
A12: OTLATMA ORANI | B12: 1 | C12: 0.5
A13: TOPLAM HAYVAN SAYISI (HB) | B13: 1109.52 | C13: 563.9066667
A14: MERA OTLATMA KAPASİTESİ (HB) | B14: 1128 | C14: 1128
A15: ÜRETİMİN İHTİYACI KARŞILAMA ORANI (%) | B15: 1 | C15: 2
A16: MERA DÖNEMİNDE KURU KABA YEM AÇIĞI (TON) | B16: 0 | C16: -1057.5
A17: İLKBAHAR VE ANIZ OTLATMA KURU OT ÜRETİMİ (TON) | B17: 639.61875 | C17: 333.0854167
A18: AHIR DÖNEMİNDE TÜKETİLEN KURUOT (TON) | B18: 2307.56625 | C18: 1182.23875
A19: TOPLAM KURU OT İHTİYACI (TON) | B19: 5062.185 | C19: 2572.824167
A20: HASAT EDİLEN HAVADA KURU KABAYEM (TON) | B20: 1182.23875 | C20: 1182.23875
A21: AHIRDA KURU KABAYEM AÇIĞI (TON) | B21: 1125.3275 | C21: 0
A22: TOPLAM KURU KABAYEM AÇIĞI (TON) | B22: 1125.3275 | C22: -1057.5
A23: KANAAT | B23: normal otlatma | C23: çok hafif otlatma
A24: RAPORU HAZIRLAMA TARİHİ | B24: 2016-08-10 | C24: 2016-08-10
A25: RAPORU HAZIRLAYAN | B25: Mustafa UZUN | C25: Mustafa UZUN
